fUSD/lending_fUSD_20260221
["ID","MTS","AMOUNT","RATE_DAILY","PERIOD"]
[406261896,1771666358685,-500.0,0.00044669,120]
[406261897,1771666358694,-500.0,0.00044669,120]
[406261898,1771666358703,-500.0,0.00044669,120]
[406261899,1771666358712,-500.0,0.00044669,120]
[406261900,1771666358721,-690.43,0.00044669,120]
[406261901,1771666358731,-690.43,0.00044669,120]
[406261902,1771666358741,-690.43,0.00044669,120]
[406261903,1771666358750,-500.0,0.00044669,120]
[406261904,1771666358759,-500.0,0.00044669,120]
[406261905,1771666358767,-500.0,0.00044669,120]
[406261906,1771666358777,-500.0,0.00044669,120]
[406261907,1771666358786,-500.0,0.00044669,120]
[406261908,1771666358796,-500.0,0.00044669,120]
[406261909,1771666358805,-500.0,0.00044669,120]
[406261910,1771666358814,-549.32,0.00044669,120]
[406261911,1771666358823,-500.0,0.00044669,2]
[406261912,1771666358832,-549.32,0.00044669,120]
[406261913,1771666358841,-500.0,0.00044669,2]
[406261914,1771666358851,-211.45631102,0.00044669,2]
[406261915,1771666358861,-549.32,0.00044669,120]
[406261916,1771666358870,-500.0,0.00044669,120]
[406261917,1771666358879,-500.0,0.00044669,120]
[406261918,1771666358888,-283.4204358,0.00044669,120]
[406261919,1771666358897,-500.0,0.00044669,120]
[406261920,1771666358906,-500.0,0.00044669,120]
[406261921,1771666358915,-500.0,0.00044669,120]
[406261922,1771666358925,-500.0,0.00044669,120]
[406261923,1771666358934,-175.62646612,0.00044669,120]
[406261924,1771666358943,-500.0,0.00044669,120]
[406261925,1771666358952,-500.0,0.00044669,120]
[406261926,1771666358961,-500.0,0.00044669,120]
[406261927,1771666358970,-500.0,0.00044669,120]
[406261928,1771666358980,-500.0,0.00044669,120]
[406261929,1771666358989,-604.16,0.00044669,30]
[406261930,1771666358999,-604.16,0.00044669,30]
[406261931,1771666359010,-604.16,0.00044669,30]
[406261932,1771666359019,-500.0,0.00044669,120]
[406261933,1771666359028,-500.0,0.00044669,120]
[406261934,1771666359038,-500.0,0.00044669,120]
[406261935,1771666359047,-500.0,0.00044669,120]
[406261936,1771666359055,-500.0,0.00044669,120]
[406261937,1771666359065,-500.0,0.00044669,120]
[406261938,1771666359074,-500.0,0.00044669,120]
[406261939,1771666359083,-500.0,0.00044669,120]
[406261940,1771666359093,-200.88,0.00044669,120]
[406261941,1771666359103,-500.0,0.00044669,120]
[406261942,1771666359113,-500.0,0.00044669,120]
[406261943,1771666359122,-500.0,0.00044669,120]
[406261944,1771666359132,-500.0,0.00044669,120]
[406261945,1771666359141,-500.0,0.00044669,120]
[406261946,1771666359151,-500.0,0.00044669,120]
[406261947,1771666359160,-510.21296476,0.00044669,120]
[406261948,1771666359169,-500.0,0.00044669,120]
[406261949,1771666359178,-500.0,0.00044669,120]
[406261950,1771666359187,-530.24,0.00044669,120]
[406261951,1771666359196,-530.24,0.00044669,120]
[406261952,1771666359205,-175.650927,0.00044671,2]
[406261953,1771666359214,-150.0,0.00044687,120]
[406261954,1771666359223,-404.7,0.000447,14]
[406261955,1771666359233,-580.4534,0.000447,120]
[406261956,1771666359243,-500.0,0.00044739,120]
[406261957,1771666359253,-500.0,0.00044739,120]
[406261958,1771666359262,-209.30308604,0.00044739,120]
[406261959,1771666359271,-500.0,0.00044739,120]
[406261960,1771666359281,-419.28368015,0.00044739,120]
[406261961,1771666359291,-500.0,0.00044739,120]
[406261962,1771666359302,-530.24,0.00044739,120]
[406261963,1771666359313,-150.0,0.00044742,120]
[406261964,1771666359323,-150.0,0.00044752,30]
[406261965,1771666359334,-261.0,0.00044757,60]
[406261966,1771666359345,-500.0,0.00044766,120]
[406261967,1771666359354,-500.0,0.00044766,120]
[406261968,1771666359363,-500.0,0.00044766,120]
[406261969,1771666359372,-500.0,0.00044766,120]
[406261970,1771666359383,-500.0,0.00044766,120]
[406261971,1771666359393,-500.0,0.00044766,120]
[406261972,1771666359401,-500.0,0.00044766,120]
[406261973,1771666359410,-500.0,0.00044766,120]
[406261974,1771666359419,-512.07352684,0.00044766,120]
[406261975,1771666359428,-690.43,0.00044766,120]
[406261976,1771666359437,-500.0,0.00044766,120]
[406261977,1771666359445,-500.0,0.00044766,120]
[406261978,1771666359454,-500.0,0.00044766,120]
[406261979,1771666359467,-228.81961079,0.00044766,120]
[406261980,1771666359475,-549.32,0.00044766,120]
[406261981,1771666359484,-549.32,0.00044766,120]
[406261982,1771666359493,-549.32,0.00044766,120]
[406261983,1771666359502,-549.32,0.00044766,120]
[406261984,1771666359510,-549.32,0.00044766,120]
[406261985,1771666359519,-549.32,0.00044766,120]
[406261986,1771666359528,-549.32,0.00044766,120]
[406261987,1771666359537,-549.32,0.00044766,120]
[406261988,1771666359546,-549.32,0.00044766,120]
[406261989,1771666359555,-549.32,0.00044766,120]
[406261990,1771666359564,-549.32,0.00044766,120]
[406261991,1771666359573,-549.32,0.00044766,120]
[406261992,1771666359581,-549.32,0.00044766,120]
[406261993,1771666359590,-549.32,0.00044766,120]
[406261994,1771666359599,-549.32,0.00044766,120]
[406261995,1771666359611,-549.32,0.00044766,120]
[406261996,1771666359620,-549.35370311,0.00044766,120]
[406261997,1771666359629,-500.0,0.00044766,120]
[406261998,1771666359638,-500.0,0.00044766,120]
[406261999,1771666359648,-500.0,0.00044766,120]
[406262000,1771666359657,-500.0,0.00044766,120]
[406262001,1771666359666,-500.0,0.00044766,120]
[406262002,1771666359675,-500.0,0.00044766,120]
[406262003,1771666359684,-457.96689053,0.00044766,120]
[406262004,1771666359693,-604.16,0.00044766,30]
[406262005,1771666359702,-604.16,0.00044766,30]
[406262006,1771666359711,-604.16,0.00044766,30]
[406262007,1771666359721,-604.16,0.00044766,30]
[406262008,1771666359729,-604.16,0.00044766,30]
[406262009,1771666359738,-604.16,0.00044766,30]
[406262010,1771666359748,-604.16,0.00044766,30]
[406262011,1771666359758,-604.16,0.00044766,30]
[406262012,1771666359768,-604.16,0.00044766,30]
[406262013,1771666359777,-604.16,0.00044766,30]
[406262014,1771666359786,-500.0,0.00044766,120]
[406262015,1771666359795,-604.16,0.00044766,30]
[406262016,1771666359804,-604.16,0.00044766,30]
[406262017,1771666359813,-604.16,0.00044766,30]
[406262018,1771666359822,-604.16,0.00044766,30]
[406262019,1771666359831,-604.16,0.00044766,30]
[406262020,1771666359843,-604.16,0.00044766,30]
[406262021,1771666359852,-604.32,0.00044766,30]
[406262022,1771666359862,-224.52001652,0.00044766,120]
[406262023,1771666359871,-500.0,0.00044766,120]
[406262024,1771666359880,-500.0,0.00044766,120]
[406262025,1771666359889,-500.0,0.00044766,120]
[406262026,1771666359898,-500.0,0.00044766,120]
[406262027,1771666359907,-500.0,0.00044766,120]
[406262028,1771666359916,-282.83746446,0.00044766,120]
[406262029,1771666359924,-500.0,0.00044766,120]
[406262030,1771666359933,-500.0,0.00044766,120]
[406262031,1771666359942,-152.30878513,0.00044766,120]
[406262032,1771666359952,-267.46074303,0.00044766,30]
[406262033,1771666359961,-150.0,0.00044768,120]
[406262034,1771666359970,-257.91778498,0.00044779,60]
[406262035,1771666359979,-239.84119403,0.0004478,54]
[406262036,1771666359988,-248.71531821,0.0004478,60]
[406262037,1771666359997,-231.28369723,0.00044781,54]
[406262038,1771666360006,-197.7,0.000448,82]
[406262039,1771666360015,-522.0,0.000448,28]
[406262040,1771666360024,-171.377626,0.000448,10]
[406262041,1771666360033,-200.0,0.000448,27]
[406262042,1771666360042,-150.0,0.00044811,120]
[406262043,1771666360051,-500.0,0.00044817,120]
[406262044,1771666360060,-500.0,0.00044817,120]
[406262045,1771666360070,-500.0,0.00044817,120]
[406262046,1771666360079,-500.0,0.00044817,120]
[406262047,1771666360089,-530.24,0.00044817,120]
[406262048,1771666360099,-205.0,0.0004483,7]
[406262049,1771666360109,-223.0315306,0.00044834,30]
[406262050,1771666360118,-646.65982734,0.00044838,64]
[406262051,1771666360127,-500.0,0.00044838,64]
[406262052,1771666360136,-428.6339524,0.00044838,66]
[406262053,1771666360145,-500.0,0.00044838,66]
[406262054,1771666360345,-500.0,0.00044838,68]
[406262055,1771666360355,-500.0,0.00044838,64]
[406262056,1771666360366,-500.0,0.00044838,66]
[406262057,1771666360377,-500.0,0.00044838,68]
[406262058,1771666360386,-250.0,0.00044838,64]
[406262059,1771666360396,-250.0,0.00044838,66]
[406262060,1771666360407,-500.0,0.00044838,64]
[406262061,1771666360416,-187.78006525,0.00044838,64]
[406262062,1771666360426,-500.0,0.00044838,66]
[406262063,1771666360438,-250.0,0.00044838,68]
[406262064,1771666360448,-194.72792766,0.00044838,66]
[406262065,1771666360458,-500.0,0.00044838,68]
[406262066,1771666360471,-305.00351474,0.00044838,68]
[406262067,1771666360481,-621.78829552,0.00044838,64]
[406262068,1771666360490,-644.79446246,0.00044838,66]
[406262069,1771666360499,-668.65185757,0.00044838,68]
[406262070,1771666360510,-4974.30636418,0.00044838,64]
[406262071,1771666360520,-5158.35569965,0.00044838,66]
[406262072,1771666360530,-5349.21486054,0.00044838,68]
[406262073,1771666360540,-5547.13581038,0.00044838,69]
[406262074,1771666360549,-5752.37983536,0.00044838,116]
[406262075,1771666360559,-151.0,0.00044838,64]
[406262076,1771666360568,-151.0,0.00044838,66]
[406262077,1771666360577,-151.0,0.00044838,68]
[406262078,1771666360586,-150.0,0.00044839,120]
[406262079,1771666360595,-623.58710448,0.00044839,30]
[406262080,1771666360605,-500.0,0.00044839,30]
[406262081,1771666360614,-500.0,0.00044839,30]
[406262082,1771666360622,-250.0,0.00044839,30]
[406262083,1771666360632,-500.0,0.00044839,30]
[406262084,1771666360641,-181.08010149,0.00044839,30]
[406262085,1771666360650,-599.60298507,0.00044839,30]
[406262086,1771666360659,-4796.8238806,0.00044839,30]
[406262087,1771666360668,-372.94109186,0.00044839,30]
[406262088,1771666360678,-215.0738,0.00044839,30]
[406262089,1771666360687,-151.0,0.00044839,30]
[406262090,1771666360696,-601.3376128,0.0004484,30]
[406262091,1771666360704,-500.0,0.0004484,30]
[406262092,1771666360713,-500.0,0.0004484,30]
[406262093,1771666360722,-250.0,0.0004484,30]
[406262094,1771666360731,-500.0,0.0004484,30]
[406262095,1771666360740,-174.61919141,0.0004484,30]
[406262096,1771666360750,-578.20924308,0.0004484,30]
[406262097,1771666360758,-4625.67394464,0.0004484,30]
[406262098,1771666360767,-500.0,0.0004484,30]
[406262099,1771666360776,-207.4,0.0004484,30]
[406262100,1771666360786,-151.0,0.0004484,30]
[406262101,1771666360794,-579.88197956,0.00044841,30]
[406262102,1771666360803,-557.5788265,0.00044841,30]
[406262103,1771666360812,-500.0,0.00044841,30]
[406262104,1771666360821,-168.3888056,0.00044841,30]
[406262105,1771666360831,-500.0,0.00044841,30]
[406262106,1771666360840,-152.84129386,0.00044841,30]
[406262107,1771666360849,-250.0,0.00044841,30]
[406262108,1771666360858,-500.0,0.00044841,30]
[406262109,1771666360867,-168.3888056,0.00044841,30]
[406262110,1771666360876,-557.5788265,0.00044841,30]
[406262111,1771666360886,-4460.630612,0.00044841,30]
[406262112,1771666360895,-500.0,0.00044841,30]
[406262113,1771666360904,-200.0,0.00044841,30]
[406262114,1771666360914,-151.0,0.00044841,30]
[406262115,1771666360923,-200.0,0.00044854,5]
[406262116,1771666360932,-559.19188,0.00044859,120]
[406262117,1771666360941,-623.6559736,0.00044859,120]
[406262118,1771666360951,-537.6845,0.00044859,120]
[406262119,1771666360960,-500.0,0.00044859,120]
[406262120,1771666360969,-162.380719,0.00044859,120]
[406262121,1771666360980,-500.0,0.00044859,120]
[406262122,1771666360990,-151.0,0.00044859,120]
[406262123,1771666361000,-250.0,0.00044859,120]
[406262124,1771666361009,-500.0,0.00044859,120]
[406262125,1771666361018,-162.380719,0.00044859,120]
[406262126,1771666361027,-537.6845,0.00044859,120]
[406262127,1771666361036,-4301.476,0.00044859,120]
[406262128,1771666361044,-500.0,0.00044859,120]
[406262129,1771666361053,-151.0,0.00044859,120]
[406262130,1771666361062,-150.0,0.00044861,2]
[406262131,1771666361071,-539.24,0.00044861,120]
[406262132,1771666361081,-500.0,0.00044861,120]
[406262133,1771666361090,-518.5,0.00044861,120]
[406262134,1771666361099,-500.0,0.00044861,120]
[406262135,1771666361108,-156.587,0.00044861,120]
[406262136,1771666361117,-500.0,0.00044861,120]
[406262137,1771666361126,-151.0,0.00044861,120]
[406262138,1771666361135,-505.53630992,0.00044861,120]
[406262139,1771666361144,-250.0,0.00044861,120]
[406262140,1771666361153,-184.69909757,0.00044861,120]
[406262141,1771666361161,-500.0,0.00044861,120]
[406262142,1771666361171,-156.587,0.00044861,120]
[406262143,1771666361179,-156.587,0.00044861,120]
[406262144,1771666361188,-518.5,0.00044861,120]
[406262145,1771666361197,-4148.0,0.00044861,120]
[406262146,1771666361206,-500.0,0.00044861,120]
[406262147,1771666361216,-151.0,0.00044861,120]
[406262148,1771666361225,-520.0,0.00044862,120]
[406262149,1771666361235,-500.0,0.00044862,120]
[406262150,1771666361244,-500.0,0.00044862,120]
[406262151,1771666361254,-168.91834196,0.00044862,120]
[406262152,1771666361263,-911.64591255,0.00044862,120]
[406262153,1771666361275,-500.0,0.00044862,120]
[406262154,1771666361285,-178.34454881,0.00044862,120]
[406262155,1771666361294,-151.0,0.00044862,120]
[406262156,1771666361304,-500.0,0.00044862,120]
[406262157,1771666361315,-374.93516283,0.00044862,120]
[406262158,1771666361326,-151.0,0.00044862,120]
[406262159,1771666361335,-500.0,0.00044862,120]
[406262160,1771666361345,-250.0,0.00044862,120]
[406262161,1771666361355,-250.0,0.00044862,120]
[406262162,1771666361364,-500.0,0.00044862,120]
[406262163,1771666361373,-151.0,0.00044862,120]
[406262164,1771666361382,-151.0,0.00044862,120]
[406262165,1771666361390,-500.0,0.00044862,120]
[406262166,1771666361399,-4000.0,0.00044862,120]
[406262167,1771666361408,-500.0,0.00044862,120]
[406262168,1771666361417,-151.0,0.00044862,120]
[406262169,1771666361427,-150.0,0.00044863,2]
[406262170,1771666361436,-3949.10418735,0.00044863,2]
[406262171,1771666361446,-150.0,0.00044863,2]
[406262172,1771666361455,-10982.1817323,0.00044863,2]
[406262173,1771666361468,-500.0,0.00044866,120]
[406262174,1771666361477,-500.0,0.00044866,120]
[406262175,1771666361485,-690.43,0.00044866,120]
[406262176,1771666361494,-500.0,0.00044866,120]
[406262177,1771666361503,-600.0,0.00044867,60]
[406262178,1771666361512,-222.82747019,0.00044867,30]
[406262179,1771666361521,-200.34632247,0.00044867,30]
[406262180,1771666361531,-205.38048344,0.00044867,30]
[406262181,1771666361539,-271.61118782,0.00044867,30]
[406262182,1771666361548,-252.83380749,0.00044867,30]
[406262183,1771666361556,-184.38149303,0.00044867,30]
[406262184,1771666361565,-233.43423309,0.00044867,30]
[406262185,1771666361575,-188.5137067,0.00044867,30]
[406262186,1771666361584,-241.57684812,0.00044867,30]
[406262187,1771666361594,-270.00017257,0.00044867,30]
[406262188,1771666361603,-150.66853704,0.00044867,30]
[406262189,1771666361612,-231.87584591,0.00044867,30]
[406262190,1771666361622,-200.87673457,0.00044867,30]
[406262191,1771666361633,-159.16376581,0.00044867,30]
[406262192,1771666361644,-260.88408063,0.00044867,30]
[406262193,1771666361653,-500.0,0.00044867,30]
[406262194,1771666361662,-500.0,0.00044867,30]
[406262195,1771666361671,-500.0,0.00044867,30]
[406262196,1771666361680,-500.0,0.00044867,30]
[406262197,1771666361689,-500.0,0.00044867,30]
[406262198,1771666361698,-500.0,0.00044867,30]
[406262199,1771666361707,-500.0,0.00044867,30]
[406262200,1771666361716,-312.63924954,0.00044867,30]
[406262201,1771666361725,-354.67934977,0.00044867,7]
[406262202,1771666361734,-354.67934977,0.00044867,7]
[406262203,1771666361743,-354.67934977,0.00044867,7]
[406262204,1771666361752,-354.67934977,0.00044867,7]
[406262205,1771666361761,-354.67934977,0.00044867,7]
[406262206,1771666361769,-354.67934977,0.00044867,7]
[406262207,1771666361778,-354.67934977,0.00044867,7]
[406262208,1771666361787,-354.67934977,0.00044867,7]
[406262209,1771666361797,-354.67934977,0.00044867,7]
[406262210,1771666361819,-354.67934976,0.00044867,7]
[406262211,1771666361837,-354.67934976,0.00044867,7]
[406262212,1771666361858,-354.67934976,0.00044867,7]
[406262213,1771666361877,-354.67934976,0.00044867,7]
[406262214,1771666361894,-354.67934976,0.00044867,7]
[406262215,1771666361915,-354.67934976,0.00044867,7]
[406262216,1771666361937,-354.67934976,0.00044867,7]
[406262217,1771666361958,-354.67934976,0.00044867,7]
[406262218,1771666361978,-354.67934976,0.00044867,7]
[406262219,1771666361996,-354.67934976,0.00044867,7]
[406262220,1771666362012,-354.67934976,0.00044867,7]
[406262221,1771666362032,-500.0,0.00044867,60]
[406262222,1771666362044,-1552.78,0.00044867,30]
[406262223,1771666362061,-162.1551485,0.00044867,3]
[406262224,1771666362076,-165.78804136,0.00044867,3]
[406262225,1771666362089,-152.0012827,0.00044867,3]
[406262226,1771666362103,-228.76,0.00044891,2]
[406262227,1771666362117,-687.83,0.00044893,2]
[406262228,1771666362131,-500.0,0.00044893,120]
[406262229,1771666362147,-500.0,0.00044893,120]
[406262230,1771666362161,-500.0,0.00044893,120]
[406262231,1771666362176,-500.0,0.00044893,120]
[406262232,1771666362191,-530.24,0.00044893,120]
[406262233,1771666362206,-500.0,0.00044894,120]
[406262234,1771666362220,-606.85449073,0.00044894,120]
[406262235,1771666362234,-500.0,0.00044894,120]
[406262236,1771666362249,-500.0,0.00044894,120]
[406262237,1771666362263,-343.650767,0.00044894,120]
[406262238,1771666362278,-575.28,0.00044894,120]
[406262239,1771666362292,-575.28,0.00044894,120]
[406262240,1771666362309,-575.28,0.00044894,120]
[406262241,1771666362325,-575.28,0.00044894,120]
[406262242,1771666362340,-575.43,0.00044894,120]
[406262243,1771666362355,-830.55,0.00044894,120]
[406262244,1771666362368,-830.55,0.00044894,120]
[406262245,1771666362382,-830.55,0.00044894,120]
[406262246,1771666362396,-913.79,0.00044894,120]
[406262247,1771666362410,-913.79,0.00044894,120]
[406262248,1771666362424,-913.79,0.00044894,120]
[406262249,1771666362440,-4170.41,0.00044894,2]
[406262250,1771666362457,-4170.41,0.00044894,2]
[406262251,1771666362473,-4170.41,0.00044894,2]
[406262252,1771666362487,-4170.41,0.00044894,2]
[406262253,1771666362501,-4170.57000001,0.00044894,2]
[406262254,1771666362515,-500.0,0.00044894,120]
[406262255,1771666362528,-500.0,0.00044894,120]
[406262256,1771666362543,-500.0,0.00044894,120]
[406262257,1771666362557,-403.6,0.00044894,120]
[406262258,1771666362571,-687.83,0.00044894,2]
[406262259,1771666362586,-687.83,0.00044894,2]
[406262260,1771666362599,-687.83,0.00044894,2]
[406262261,1771666362613,-690.43,0.00044894,120]
[406262262,1771666362627,-690.43,0.00044894,120]
[406262263,1771666362642,-690.43,0.00044894,120]
[406262264,1771666362658,-690.43,0.00044894,120]
[406262265,1771666362673,-690.43,0.00044894,120]
[406262266,1771666362688,-690.49719055,0.00044894,120]
[406262267,1771666362703,-500.0,0.00044894,120]
[406262268,1771666362719,-500.0,0.00044894,120]
[406262269,1771666362734,-500.0,0.00044894,120]
[406262270,1771666362748,-500.0,0.00044894,120]
[406262271,1771666362763,-443.32705437,0.00044894,120]
[406262272,1771666362777,-500.0,0.00044894,120]
[406262273,1771666362792,-500.0,0.00044894,120]
[406262274,1771666362806,-500.0,0.00044894,120]
[406262275,1771666362821,-428.70187039,0.00044894,120]
[406262276,1771666362836,-500.0,0.00044894,120]
[406262277,1771666362851,-500.0,0.00044894,120]
[406262278,1771666362865,-500.0,0.00044894,120]
[406262279,1771666362878,-530.24,0.00044894,120]
[406262280,1771666362892,-530.24,0.00044894,120]
[406262281,1771666362906,-530.24,0.00044894,120]
[406262282,1771666362921,-270826.10426825,0.00044895,5]
[406262283,1771666362936,-379693.15834628,0.00044895,15]
[406262284,1771666362950,-92316.54886559,0.00044895,2]
[406262285,1771666362963,-830.55,0.00044899,120]
[406262286,1771666362977,-913.79,0.00044899,120]
[406262287,1771666362992,-500.0,0.00044899,120]
[406262288,1771666363006,-687.83,0.00044899,2]
[406262289,1771666363020,-687.83,0.00044899,2]
[406262290,1771666363034,-687.83,0.00044899,2]
[406262291,1771666363048,-687.83,0.00044899,2]
[406262292,1771666363062,-687.87,0.00044899,2]
[406262293,1771666363075,-500.0,0.00044899,120]
[406262294,1771666363089,-461.88997118,0.00044899,120]
[406262295,1771666363103,-603.44165971,0.00044899,120]
[406262296,1771666363117,-530.24,0.00044899,120]
[406262297,1771666363130,-530.24,0.00044899,120]
[406262298,1771666363145,-530.24,0.00044899,120]
[406262299,1771666363158,-530.24,0.00044899,120]
[406262300,1771666363173,-530.26899093,0.00044899,120]
[406262301,1771666363186,-152.03,0.000449,120]
[406262302,1771666363199,-320075.58894203,0.000449,30]
[406262303,1771666363212,-1334.81547051,0.000449,2]
[406262304,1771666363225,-1470.23145373,0.000449,2]
[406262305,1771666363238,-1470.23145373,0.000449,2]
[406262306,1771666363252,-1155.88089398,0.000449,2]
[406262307,1771666363266,-1155.88089398,0.000449,2]
[406262308,1771666363280,-150.0,0.00044907,120]
[406262309,1771666363295,-150.0,0.00044912,120]
[406262310,1771666363308,-830.55,0.00044915,120]
[406262311,1771666363321,-913.79,0.00044915,120]
[406262312,1771666363334,-830.55,0.00044916,120]
[406262313,1771666363348,-830.55,0.00044916,120]
[406262314,1771666363361,-830.55,0.00044916,120]
[406262315,1771666363375,-830.55,0.00044916,120]
[406262316,1771666363388,-830.55,0.00044916,120]
[406262317,1771666363402,-830.64646627,0.00044916,120]
[406262318,1771666363415,-913.79,0.00044916,120]
[406262319,1771666363428,-913.79,0.00044916,120]
[406262320,1771666363441,-913.79,0.00044916,120]
[406262321,1771666363456,-913.79,0.00044916,120]
[406262322,1771666363471,-913.79,0.00044916,120]
[406262323,1771666363484,-913.97658052,0.00044916,120]
[406262324,1771666363499,-399.0,0.00044928,120]
[406262325,1771666363513,-842.0,0.00044932,120]
[406262326,1771666363527,-152.28,0.00044932,120]
[406262327,1771666363540,-533.8328,0.00044942,120]
[406262328,1771666363553,-533.3357,0.00044942,120]
[406262329,1771666363567,-345.6,0.00044944,120]
[406262330,1771666363581,-202.55,0.00044948,120]
[406262331,1771666363597,-500.0,0.00044953,120]
[406262332,1771666363611,-500.0,0.00044953,120]
[406262333,1771666363625,-500.0,0.00044953,120]
[406262334,1771666363638,-500.0,0.00044953,120]
[406262335,1771666363652,-500.0,0.00044953,120]
[406262336,1771666363666,-500.0,0.00044953,120]
[406262337,1771666363681,-500.0,0.00044953,120]
[406262338,1771666363695,-500.0,0.00044953,120]
[406262339,1771666363709,-500.0,0.00044953,120]
[406262340,1771666363723,-500.0,0.00044953,120]
[406262341,1771666363735,-500.0,0.00044953,120]
[406262342,1771666363749,-500.0,0.00044953,120]
[406262343,1771666363762,-500.0,0.00044953,120]
[406262344,1771666363775,-500.0,0.00044953,120]
[406262345,1771666363789,-500.0,0.00044953,120]
[406262346,1771666363803,-500.0,0.00044953,120]
[406262347,1771666363825,-500.0,0.00044953,120]
[406262348,1771666363845,-500.0,0.00044953,120]
[406262349,1771666363861,-500.0,0.00044953,120]
[406262350,1771666363876,-500.0,0.00044953,120]
[406262351,1771666363889,-500.0,0.00044953,120]
[406262352,1771666363904,-500.0,0.00044953,120]
[406262353,1771666363918,-500.0,0.00044953,120]
[406262354,1771666363935,-500.0,0.00044953,120]
[406262355,1771666363954,-500.0,0.00044953,120]
[406262356,1771666363969,-500.0,0.00044953,120]
[406262357,1771666363983,-500.0,0.00044953,120]
[406262358,1771666363997,-500.0,0.00044953,120]
[406262359,1771666364010,-500.0,0.00044953,120]
[406262360,1771666364024,-500.0,0.00044953,120]
[406262361,1771666364038,-500.0,0.00044953,120]
[406262362,1771666364053,-500.0,0.00044953,120]
[406262363,1771666364066,-500.0,0.00044953,120]
[406262364,1771666364081,-500.0,0.00044953,120]
[406262365,1771666364466,-500.0,0.00044953,120]
[406262366,1771666364484,-500.0,0.00044953,120]
[406262367,1771666364493,-500.0,0.00044953,120]
[406262368,1771666364503,-500.0,0.00044953,120]
[406262369,1771666364512,-500.0,0.00044953,120]
[406262370,1771666364522,-500.0,0.00044953,120]
[406262371,1771666364531,-500.0,0.00044953,120]
[406262372,1771666364540,-500.0,0.00044953,120]
[406262373,1771666364549,-500.0,0.00044953,120]
[406262374,1771666364558,-500.0,0.00044953,120]
[406262375,1771666364567,-500.0,0.00044953,120]
[406262376,1771666364576,-500.0,0.00044953,120]
[406262377,1771666364585,-500.0,0.00044953,120]
[406262378,1771666364594,-500.0,0.00044953,120]
[406262379,1771666364604,-500.0,0.00044953,120]
[406262380,1771666364614,-500.0,0.00044953,120]
[406262381,1771666364623,-500.0,0.00044953,120]
[406262382,1771666364632,-500.0,0.00044953,120]
[406262383,1771666364642,-500.0,0.00044953,120]
[406262384,1771666364651,-500.0,0.00044953,120]
[406262385,1771666364661,-500.0,0.00044953,120]
[406262386,1771666364670,-500.0,0.00044953,120]
[406262387,1771666364679,-500.0,0.00044953,120]
[406262388,1771666364688,-500.0,0.00044953,120]
[406262389,1771666364698,-500.0,0.00044953,120]
[406262390,1771666364708,-500.0,0.00044953,120]
[406262391,1771666364717,-500.0,0.00044953,120]
[406262392,1771666364726,-500.0,0.00044953,120]
[406262393,1771666364735,-500.0,0.00044953,120]
[406262394,1771666364744,-500.0,0.00044953,120]
[406262395,1771666364753,-500.0,0.00044953,120]